Cogmind - Beta 14 @@@ ROGUE MODE // 2025.03.19 @ 15:09:24 Player: winnking222 Result: Destroyed by Y-45 Defender with Heavy Assault Rifle Performance ------------- Evolutions (0) 0 Regions Visited (2) 400 Robots Destroyed (33) 165 Value Destroyed (647) 647 Prototype IDs (0) 0 Alien Tech Used (0) 0 Bonus (0) 0 TOTAL SCORE: 1212 Bonus ------- None Cogmind --------- Core Integrity 0/250 Matter 224/300 Energy 58/100 System Corruption 0% Temperature Cool (0) Movement Treading (240) Ox1 Location -10/Subcaves Parts ------- > --- POWER (1) -------- (None) > --- PROPULSION (2) --- Improved Treads > --- UTILITY (2) ------ High-capacity Storage Unit > --- WEAPON (2) ------- Assault Rifle Subdweller Machine Gun > --- INVENTORY (20) --- Light Ion Engine Subdweller Power Source Improved Treads Improved Aluminum Leg Improved Aluminum Leg Improved Aluminum Leg Improved Aluminum Leg Myomer Leg Medium Storage Unit Subdweller Optics Scrap Shield Hacking Suite EM Shotgun EM Shotgun Subdweller Laser Assault Rifle Plasma Cutter Makeshift Sword Peak State ------------ > --- POWER ------------ Ion Engine > --- PROPULSION ------- Improved Treads Improved Treads > --- UTILITY ---------- High-capacity Storage Unit > --- WEAPON ----------- Assault Rifle Makeshift Sword > --- INVENTORY -------- Light Ion Engine Subdweller Power Source Improved Treads Improved Aluminum Leg Improved Aluminum Leg Improved Aluminum Leg Improved Aluminum Leg Medium Storage Unit Subdweller Optics Scrap Shield Hacking Suite EM Shotgun EM Shotgun Riot Gun Subdweller Laser Assault Rifle Subdweller Machine Gun Plasma Cutter [Rating: 14] Favorites ----------- Power Ion Engine Engine Ion Engine Propulsion Improved Treads Treads Improved Treads Utility High-capacity Storage Unit Storage High-capacity Storage Unit Protection Light Armor Plating Weapon Assault Rifle Energy Gun EM Shotgun Ballistic Gun Assault Rifle Ballistic Cannon Light Cannon Special Weapon Plasma Cutter Slashing Weapon Makeshift Sword Build | -11 -10 -10 ------- Run | Yrd Mat Sub Slots Evolved . | . . . Power . | . . . Propulsion . | . . . Utility . | . . . Weapon . | . . . Parts Attached 29 | 6 15 8 Power 3 | 1 2 . Engine 3 | 1 2 . Core . | . . . Reactor . | . . . Propulsion 5 | 2 2 1 Treads 5 | 2 2 1 Leg . | . . . Wheel . | . . . Hover . | . . . Flight . | . . . Utility 5 | 1 4 . Device . | . . . Storage 4 | 1 3 . Processor . | . . . Hackware . | . . . Protection 1 | . 1 . Artifact . | . . . Weapon 16 | 2 7 7 Energy Gun 8 | 1 6 1 Energy Cannon . | . . . Ballistic Gun 5 | 1 . 4 Ballistic Cannon 1 | . 1 . Launcher . | . . . Special Weapon 1 | . . 1 Impact Weapon . | . . . Slashing Weapon 1 | . . 1 Piercing Weapon . | . . . Special Melee Weapon . | . . . Unidentified Prototypes . | . . . Parts Lost 11 | . 7 4 Power 3 | . 2 1 Propulsion 3 | . 1 2 Utility 1 | . 1 . Weapon 4 | . 3 1 Highest Loss Streak 3 | . 2 3 To Critical Strikes . | . . . Average Slot Usage (%) 84 | . 85 84 Engine 13 | . 13 13 Treads 27 | . 27 27 Storage 14 | . 14 14 Energy Gun 9 | . 18 2 Ballistic Gun 16 | . 5 25 Ballistic Cannon 1 | . 2 . Peak Build Rating 14 | 6 12 14 Average Rating 10 | 4 9 11 On Entrance 6 | . 6 12 Naked Turns . | . . . Heaviest Build 51 | 10 51 51 Greatest Support 46 | 40 46 46 Greatest Overweight (x) 2 | . 1 2 Average Overweight (x) . | . . . Largest Inventory Capacity 20 | 8 20 20 Average Capacity 17 | 7 14 20 Most Carried 20 | 5 12 20 Average Carried 12 | 2 7 17 Final Capacity 20 | 8 20 20 Final Carried 19 | 3 12 19 Class Distribution -------------------- 100% | Mutant Dominant Class ---------------- Mutant | -10/Materials Mutant | -10/Subcaves Resources | -11 -10 -10 ----------- Run | Yrd Mat Sub Matter Collected 557 | 263 240 54 Remotely . | . . . Salvage Created 1017 | 114 761 142 Parts 60 | 7 42 11 Haulers Intercepted 1 | . 1 . Recyclers Shooed 2 | 1 1 . Parts Field Recycled . | . . . Retrieved Matter . | . . . Parts Self-Destructed 8 | . . 8 Prevented 1 | . . 1 Kills | -11 -10 -10 ------- Run | Yrd Mat Sub Combat Hostiles Destroyed 25 | . 19 6 Guns 20 | . 15 5 Cannons 1 | . 1 . AOE 4 | . 3 1 Classes Destroyed 9 | 2 6 1 Worker 1 | . 1 . Tunneler 1 | 1 . . Hauler 1 | . 1 . Recycler 2 | 1 1 . Operator 2 | . 2 . Watcher 1 | . 1 . Swarmer 13 | . 9 4 Grunt 11 | . 10 1 Subdweller 1 | . . 1 Best Kill Streak 4 | 2 4 3 Combat Bots Only 4 | . 4 3 Max Kills in Single Turn 3 | 1 3 1 Gunslinging . | . . . Exploded 2 | . 2 1 Melee . | . . . Uniques/NPCs Destroyed . | . . . Combat | -11 -10 -10 -------- Run | Yrd Mat Sub Hostile Shots Fired 237 | . 144 93 Missed 60 | . 39 21 Damage Taken 1830 | . 1153 677 Core 261 | . 144 117 Absorbed by Shields . | . . . Core Remaining (%) 100 | 100 . . Volleys Fired 89 | 3 68 18 Largest 2 | 2 2 2 Hottest 90 | 60 90 90 Shots Fired 168 | 6 128 34 Gun 149 | 6 109 34 Cannon 19 | . 19 . Launcher . | . . . Special . | . . . Kinetic 83 | 3 58 22 Thermal 16 | 3 13 . Explosive . | . . . Electromagnetic 69 | . 57 12 Robot Hit Streak 11 | 5 11 8 Robot Miss Streak 4 | . 4 4 Penetration Max . | . . . Secondary Targets 4 | . . 4 Max Gunslinging Chain 1 | . . 1 Shots Hit Robots 110 | 5 81 24 Core Hits 57 | 3 46 8 Critical Kills . | . . . Critical Parts Destroyed . | . . . Critical Strikes . | . . . Melee Attacks 1 | . . 1 Impact . | . . . Slashing 1 | . . 1 Piercing . | . . . Sneak Attacks . | . . . Combat Hostiles . | . . . Follow-up Attacks . | . . . Damage Inflicted 1760 | 51 1382 327 Guns 1226 | 51 895 280 Cannons 157 | . 157 . Explosions 377 | . 330 47 Melee . | . . . Ramming . | . . . Kinetic 556 | 18 339 199 Thermal 499 | 33 419 47 Explosive . | . . . Electromagnetic 705 | . 624 81 Impact . | . . . Slashing . | . . . Piercing . | . . . Highest Corruption . | . . . Average Corruption . | . . . Corruption Purged . | . . . Corruption Blocked . | . . . Overload Shots . | . . . Overflow Damage 8 | . 8 . Projectiles . | . . . Explosions 8 | . 8 . Melee . | . . . Knockbacks 4 | . 4 . Impact . | . . . Kinetic 4 | . 4 . Secondary . | . . . Self-Inflicted Damage 129 | . 117 12 Shots 5 | . 4 1 Rammed . | . . . Targets Rammed . | . . . Kicked . | . . . Crushed . | . . . Highest Temperature 183 | 20 183 2 Average Temperature 43 | 15 44 2 Received Heat Transfer 558 | . 381 177 Siege Activations . | . . . Robots Corrupted 1 | . 1 . Combat Hostiles . | . . . Parts Fried 1 | . 1 . Impact Corruptions . | . . . Robots Melted . | . . . Combat Hostiles . | . . . Parts Melted . | . . . Heat Transferred 675 | 75 600 . Parts Sabotaged . | . . . Parts Stolen . | . . . Parts Stripped . | . . . Power Chain Reactions 6 | . 5 1 Alert | -11 -10 -10 ------- Run | Yrd Mat Sub Peak Influence 358 | 10 358 . Initial 6 | . 6 . Average 149 | 2 159 . Maximum Alert Level 1 | . 1 . Low Security (%) 61 | 100 58 . Level 1 38 | . 41 . Level 2 . | . . . Level 3 . | . . . Level 4 . | . . . Level 5 . | . . . High Security . | . . . Max Security . | . . . Squads Dispatched 4 | . 4 . Investigation 2 | . 2 . Extermination . | . . . Reinforcement 2 | . 2 . Assault . | . . . Garrison . | . . . Intercept . | . . . Searches Triggered . | . . . Construction Impeded . | . . . Haulers Reinforced . | . . . Active Scanning Responses . | . . . Cargo Convoy Interrupts . | . . . Stealth | -11 -10 -10 --------- Run | Yrd Mat Sub Distress Signals 5 | . 5 . Communications Jammed . | . . . Distress Signals . | . . . Times Spotted 47 | . 35 12 Peak Tracking Total 8 | . 7 8 Tactical Retreats 3 | . 2 1 Traps | -11 -10 -10 ------- Run | Yrd Mat Sub Traps Triggered . | . . . Indirectly . | . . . Trap Hack Attempts . | . . . Triggered . | . . . Disarmed . | . . . Reprogrammed . | . . . Reused . | . . . Traps Extracted . | . . . Installed . | . . . Triggered 1 | . 1 . Machines | -11 -10 -10 ---------- Run | Yrd Mat Sub Machines Disabled 2 | . 2 . Max in Single Turn 2 | . 2 . Machines Repaired . | . . . Machines Dismantled . | . . . Machines Sabotaged . | . . . Overloaded Fab Kills . | . . . Hacking | -11 -10 -10 --------- Run | Yrd Mat Sub Machines Accessed 2 | . 2 . Terminals 2 | . 2 . Fabricators . | . . . Repair Stations . | . . . Recycling Units . | . . . Scanalyzers . | . . . Garrison Access . | . . . Total Hacks 5 | . 5 . Successful 2 | . 2 . Failed 3 | . 3 . Catastrophic 1 | . 1 . Database Lockouts . | . . . Manual 3 | . 3 . Terminals 5 | . 5 . Fabricators . | . . . Repair Stations . | . . . Recycling Units . | . . . Scanalyzers . | . . . Garrison Access . | . . . Terminal Hacks 2 | . 2 . Locate Traps 1 | . 1 . Zone Layout 1 | . 1 . Fabricator Hacks . | . . . Repair Station Hacks . | . . . Recycling Unit Hacks . | . . . Scanalyzer . | . . . Garrison Access Hacks . | . . . Unauthorized Hacks . | . . . Terminals . | . . . Fabricators . | . . . Repair Stations . | . . . Recycling Units . | . . . Scanalyzers . | . . . Garrison Access . | . . . Data Cores Recovered . | . . . Used . | . . . Hacking Detections 1 | . 1 . Full Trace Events . | . . . Feedback Events . | . . . Feedback Blocked . | . . . Robot Schematics Acquired . | . . . Robots Built . | . . . Authchips . | . . . Time . | . . . Total Robot Build Rating . | . . . Part Schematics Acquired . | . . . Parts Built . | . . . Authchips . | . . . Time . | . . . Total Part Build Rating . | . . . Parts Repaired . | . . . Time . | . . . Parts Recycled . | . . . Recycled Matter . | . . . Retrieved Matter . | . . . Retrieved Components . | . . . Parts Scanalyzed . | . . . Part Schematics Acquired . | . . . Parts Damaged . | . . . Bothacking | -11 -10 -10 ------------ Run | Yrd Mat Sub Used RIF Installer . | . . . Robots Hacked . | . . . Non-combat . | . . . Combat . | . . . Robot Hacks Applied . | . . . Relay Couplers Released . | . . . Fabnet Peak Effective % . | . . . Robots Rewired . | . . . Allies Hacked . | . . . Hacks Repelled . | . . . Allies | -11 -10 -10 -------- Run | Yrd Mat Sub Total Allies . | . . . Largest Group . | . . . Highest-Rated Group . | . . . Highest-Rated Ally . | . . . Total Orders . | . . . Ally Attacks . | . . . Total Damage . | . . . Kills . | . . . Allies Corrupted . | . . . Allies Melted . | . . . Intel | -11 -10 -10 ------- Run | Yrd Mat Sub Robot Analysis Total . | . . . Derelict Logs Recovered 1 | . . 1 Drone Launches . | . . . Drone Recoveries . | . . . Exploration | -11 -10 -10 ------------- Run | Yrd Mat Sub Turns Passed 3056 | 84 1259 1713 Spaces Moved 1255 | 54 523 678 Core 22 | 22 . . Treads 1233 | 32 523 678 Legs . | . . . Wheels . | . . . Hover . | . . . Flight . | . . . Fastest Speed 50 | 50 160 160 Average Speed 215 | 115 194 239 Slowest Speed 320 | 160 240 320 Overloaded Moves . | . . . Propulsion Burnouts . | . . . Robots Hopped . | . . . Cave-ins Triggered . | . . . Exploration Rate (%) 44 | 4 87 41 Regions Visited 2 Branch Regions 1 Pre-discovered Areas 1 | . . 1 Known Exits Taken . | . . . Unknown Exits Taken 2 | 1 1 . Scrap Searched . | . . . Spaces Dug . | . . . Terrain Destroyed 14 | . 11 3 Melee . | . . . Projectile . | . . . AOE 14 | . 11 3 Terrain Rammed . | . . . Walls Destroyed . | . . . Machines Disabled . | . . . Actions | -11 -10 -10 --------- Run | Yrd Mat Sub Total 1447 | 70 648 729 Wait 27 | . 11 16 Move 1253 | 53 522 678 Hop . | . . . Pick Up 39 | 8 23 8 Fast Attach 1 | 1 . . Attach 16 | 5 9 2 Detach 2 | . 2 . Swap 12 | . 6 6 Drop 7 | . 7 . Fire 89 | 3 68 18 Melee 1 | . . 1 Ram . | . . . Kick . | . . . Crush . | . . . Escape Stasis . | . . . Rewire . | . . . Trap . | . . . Miscellaneous . | . . . Route ------- -11/Scrapyard -10/Materials (discovered 5 exits: [*Mat x3] / [*Min] / [*Sub]) -10/Subcaves History --------- Turn | Location | Event 8 | -11/Scrapyard | Discovered new exit (range 16) 85 | -11/Scrapyard | Entered Materials 302 | -10/Materials | Build established: Mutant 320 | -10/Materials | Discovered new exit (range 7) 530 | -10/Materials | Discovered new exit (range 13) 729 | -10/Materials | Discovered new exit (range 6) 823 | -10/Materials | Core integrity fell below 50% 881 | -10/Materials | Discovered new exit (range 14) 1228 | -10/Materials | Discovered new exit (range 8) 1344 | -10/Materials | Entered Subcaves 1413 | -10/Subcaves | Learned location of 1 exit from Materials 1797 | -10/Subcaves | Learned location of Zion (-7) 1797 | -10/Subcaves | Met a Zionite searching for "candidates" 3023 | -10/Subcaves | Core integrity fell below 20% 3057 | -10/Subcaves | Destroyed by Y-45 Defender with Heavy Assault Rifle Last Messages --------------- 02401_ TC-KKP(u) deconstructs Twisted Machinery. 03021_ TB-HDG(h) destroyed. 03023_ S-10 Pest destroyed. 03024_ Acquired Myomer Leg. 03026_ Ion Engine destroyed. 03036_ S-10 Pest destroyed. 03042_ Subatomizers dissect the Lgt. Assault Rifle. 03044_ G-34 Mercenary destroyed. 03044_ Switching to secondary target: Y-45 Defender. 03045_ Lgt. Assault Rifle fries itself beyond repair. 03046_ Imp. Treads destroyed. 03047_ S-10 Pest destroyed. 03047_ Switching to secondary target: Y-45 Defender. 03049_ Riot Gun destroyed. 03051_ Lgt. Ion Engine fries itself beyond repair. 03052_ Flight Unit fries itself beyond repair. 03052_ Lgt. Assault Rifle fries itself beyond repair. 03054_ Critical hit (Burn: +37). 03057_ Subatomizers dissect the Ion Engine. 03057_ S-10 Pest destroyed. Map ----- +----------------------------------------------------+ | ?????????????????????????????????????????????????? | | ?????????????????????????????????????????????????? | | ?????????????????????????????????????????????????? | | ?????????????????????????????????????????????????? | | ?????????????????????????????????????????????????? | | ?????????????????????????????????????????????????? | | ?????????????????????????????????????????????????? | | ?????????????????????????????????????????????????? | | ?????????????????????????????????????????????????? | | ?????????????????????????????????????????????????? | | ?????????????????????????????????????????????????? | | ?????????????????????????????????????????????????? | | ??????????????????????????####???????????????????? | | ?????????????????????????## #???????????????????? | | ???????????? ???????????# ????????????????????? | | ???????????? ?????###?## ????????????????????? | | ??????????? ??### ## #????????????????????? | | ??????????? ?? #????????????????????? | | ???????????? ???? ###?????? #?????????? | | ?????????????# ?????# #### #?????????? | | ?????????? ### ?#### #????????? | | ??????????# ## * !% ?????# | | ??????????# Y = ### % ?????# | | ?????????# %%##??##### ??????? | | ???????????? #### *[#?????????? ### ??????? | | ????????????????# ### @##?????????????????????? | | ??????????????# ??## ##????????????????????? | | ??????????????# ???## ####?????????????????? | | ??????????????# ????# #?????###?????###?? | | ????????????????????# ##?##### ####### ### | | ????????????????????# ###### # # | | ????????????????##### #### | | ????????????????# | | ????????????????## ## # ##### | | ?????????????????## ### ##### ###???### | | ??????????????????## ??## ##?# ##??????## | | ???????????????????###???## #####????#### | | ?????????????????????????## #####??## | | ????????????????????????## #??# | | ??????????????????####### #?# ## | | ??????????????????# ## ## ## ### ## | | ??????????????????# ######## ## ####?# | | ??????????????????### ## ##??????#### ##??# | | ????????????????????#########????????## #?## | | ????????????????????????????????????## ### | | ????????????????????????????????????# | | ????????????????????????????????????# ## | | ????????????????????????????????????# #### | | ???????????????????????????????????## #?## | | ???????????????????????????????????# #?# | +----------------------------------------------------+ Best States ------------- Heat Dissipation 25 Energy Generation 10 Energy Capacity 250 Matter Stores 300 Matter Capacity 300 Sight Range 16 Terrain Scan Density 10 Armor Coverage 150 Evasion (%) 50 Recoil Reduction 2 Item Schematics ----------------- None Robot Schematics ------------------ None Fabricated ------------ Nothing Alien Tech Used ----------------- None Achievements -------------- None Challenges ------------ None Game ------ Seed DefenseInsulatedInsulator Manual? 0 Play Time 00:18:10 Cumulative 36.4 hours Start 2025.03.19 @ 14:53:30 End 2025.03.19 @ 15:09:24 Sessions 1 Manual Loads 0 Difficulty Rogue Special Mode None Game No. 68 Rogue 68 Adventurer 0 Explorer 0 Win Type - Total 0 Types 0/0/0/0/0/0/0/0/0 Lore% 37 Gallery% 37 Achievement% 33 Wizard Run 0 Options --------- Layout 0 ASCII 0 Keyboard 0 Movement Mouse Keybinds 0 Fullscreen 1 Font 16/SmallcapsGlow Map View 75x55 Zoom Use 0% Tactical HUD 1 Map Filters NONE Filters NONE Steam 1 RUN: cc1b6465-5d87-4c70-98bf-185080a8fb96